[Event "Fagernes Chess GM-Swiss 2024"]
[Site "Fagernes"]
[Date "2024.03.26"]
[Round "3.18"]
[White "Sidhant, Mohapatra"]
[Black "Anishka Vikram"]
[Result "1-0"]
[ECO "E06"]
[WhiteElo "2379"]
[BlackElo "1995"]
[Annotator "RC"]
[PlyCount "91"]
[EventDate "2024.03.25"]
[EventType "swiss"]
[EventCountry "NOR"]
[SourceTitle "playchess.com"]
[Source "ChessBase"]
[SourceQuality "1"]
[TimeControl "40/6000+30:2400+30"]

1. d4 {[%emt 0:00:21]} d5 {[%emt 0:00:46]} 2. Nf3 {[%emt 0:00:12]} Nf6 {[%emt 0:00:11]} 3. c4 {[%emt 0:00:16]} e6 {[%emt 0:00:13]} 4. g3 {[%emt 0:00:26]} Be7 {[%emt 0:00:20]} 5. Bg2 {[%emt 0:00:06]} O-O {[%emt 0:00:16]} 6. O-O {[%emt 0:00:06]} c6 {[%emt 0:00:15]} 7. Nc3 {[%emt 0:00:12]} b6 {[%emt 0:00:12]} 8. Ne5 {[%emt 0:00:09]} Ba6 {[%emt 0:09:20]} 9. Re1 {[%emt 0:00:59]} Bxc4 {[%emt 0:09:51]} 10. Nxc4 {[%emt 0:00:08]} dxc4 {[%emt 0:00:06]} 11. e3 {[%emt 0:00:05]} Nd5 {[%emt 0:15:58]} 12. a4 {[%emt 0:00:05]} Qd7 {[%emt 0:06:19]} 13. Qe2 {[%emt 0:15:13]} b5 {[%emt 0:14:39]} 14. Rd1 {[%emt 0:03:07]} a5 {[%emt 0:03:56]} 15. e4 {[%emt 0:00:47]} Nxc3 {[%emt 0:16:26]} 16. bxc3 {[%emt 0:00:20]} b4 {[%emt 0:13:17]} 17. Qxc4 {[%emt 0:02:00]} bxc3 {[%emt 0:00:51]} 18. Qxc3 {[%emt 0:01:05]} Na6 {[%emt 0:01:01]} 19. Be3 {[%emt 0:03:05]} Nb4 {[%emt 0:00:35]} 20. h4 {[%emt 0:00:37]} Bf6 {[%emt 0:01:07]} 21. Qc4 {[%emt 0:00:42]} Rac8 {[%emt 0:01:27]} 22. Rac1 {[%emt 0:00:19]} Rfd8 {[%emt 0:01:11]} 23. Bf3 {[%emt 0:01:57]} Qe8 {[%emt 0:00:46]} 24. Kg2 {[%emt 0:01:41]} Rd7 {[%emt 0:05:30]} 25. d5 {[%emt 0:02:08]} exd5 {[%emt 0:03:57]} 26. exd5 {[%emt 0:00:04]} Rcd8 {[%emt 0:01:31]} 27. dxc6 {[%emt 0:06:08]} Rxd1 {[%emt 0:00:16]} 28. Bxd1 {[%emt 0:02:30]} Nxc6 {[%emt 0:02:24]} 29. Bb6 {[%emt 0:02:14]} Ne5 {[%emt 0:00:34]} 30. Qb5 {[%emt 0:00:05]} Ra8 {[%emt 0:01:20]} 31. Qxe8+ {[%emt 0:01:22]} Rxe8 {[%emt 0:00:02]} 32. Bxa5 {[%emt 0:00:13]} h6 {[%emt 0:00:11]} 33. Rc7 {[%emt 0:01:19]} Nd3 {[%emt 0:00:41]} 34. Bb6 {[%emt 0:01:07]} Rb8 {[%emt 0:00:25]} 35. Ba7 {[%emt 0:01:31]} Rd8 {[%emt 0:00:43]} 36. Bb3 {[%emt 0:00:26]} Ne5 {[%emt 0:00:19]} 37. a5 {[%emt 0:00:24]} Rd6 {[%emt 0:00:44]} 38. Bc5 {[%emt 0:01:02]} Ra6 {[%emt 0:00:24]} 39. Bb6 {[%emt 0:00:08]} Ra8 {[%emt 0:00:11]} 40. f4 {[%emt 0:00:51]} Bd8 {[%emt 0:00:27]} 41. fxe5 {[%emt 0:40:37]} Bxc7 {[%emt 0:40:04]} 42. Bxc7 {[%emt 0:00:04]} Kf8 {[%emt 0:00:40]} 43. Bd5 {[%emt 0:00:17]} Rc8 {[%emt 0:00:09]} 44. Bd6+ {[%emt 0:00:07]} Ke8 {[%emt 0:00:05]} 45. a6 {[%emt 0:00:07]} Rc2+ {[%emt 0:00:13]} 46. Kh3 {[%emt 0:00:07]} 1-0

[Event "Fagernes Chess GM-Swiss 2024"]
[Site "Fagernes"]
[Date "2024.03.26"]
[Round "3.19"]
[White "Daakshin Arun"]
[Black "Puranik, Abhimanyu"]
[Result "0-1"]
[ECO "D35"]
[WhiteElo "2283"]
[BlackElo "2618"]
[Annotator "RC"]
[PlyCount "118"]
[EventDate "2024.03.25"]
[EventType "swiss"]
[EventCountry "NOR"]
[SourceTitle "playchess.com"]
[Source "ChessBase"]
[SourceQuality "1"]
[TimeControl "40/6000+30:2400+30"]

1. d4 {[%emt 0:00:09]} Nf6 {[%emt 0:00:29]} 2. c4 {[%emt 0:00:07]} e6 {[%emt 0:00:07]} 3. Nc3 {[%emt 0:00:17]} d5 {[%emt 0:00:35]} 4. cxd5 {[%emt 0:00:19]} exd5 {[%emt 0:00:04]} 5. Bg5 {[%emt 0:00:09]} Bb4 {[%emt 0:00:24]} 6. e3 {[%emt 0:01:00]} h6 {[%emt 0:00:17]} 7. Bh4 {[%emt 0:00:18]} g5 {[%emt 0:00:33]} 8. Bg3 {[%emt 0:00:07]} Ne4 {[%emt 0:00:31]} 9. a3 {[%emt 0:02:06]} Bxc3+ {[%emt 0:00:11]} 10. bxc3 {[%emt 0:00:00]} Nc6 {[%emt 0:00:05]} 11. Bd3 {[%emt 0:00:42]} Bf5 {[%emt 0:01:04]} 12. Ne2 {[%emt 0:00:43]} Qe7 {[%emt 0:00:10]} 13. h3 {[%emt 0:01:36]} O-O-O {[%emt 0:04:00]} 14. Bh2 {[%emt 0:02:07]} Qe6 {[%emt 0:10:03]} 15. O-O {[%emt 0:03:39]} Nd6 {[%emt 0:08:37]} 16. Bxd6 {[%emt 0:06:06]} Rxd6 {[%emt 0:00:46]} 17. Bxf5 {[%emt 0:12:40]} Qxf5 {[%emt 0:00:05]} 18. Ng3 {[%emt 0:00:12]} Qg6 {[%emt 0:03:30]} 19. Qf3 {[%emt 0:07:17]} Ne7 {[%emt 0:10:12]} 20. e4 {[%emt 0:04:15]} h5 {[%emt 0:04:44]} 21. exd5 {[%emt 0:06:52]} g4 {[%emt 0:03:26]} 22. Qe4 {[%emt 0:10:26]} Nxd5 {[%emt 0:00:07]} 23. Qe5 {[%emt 0:12:56]} Rdd8 {[%emt 0:18:24]} 24. h4 {[%emt 0:10:23]} Rhe8 {[%emt 0:06:02]} 25. Qxh5 {[%emt 0:01:18]} Qxh5 {[%emt 0:00:08]} 26. Nxh5 {[%emt 0:00:06]} Rh8 {[%emt 0:08:10]} 27. Ng3 {[%emt 0:00:51]} Nxc3 {[%emt 0:00:58]} 28. h5 {[%emt 0:07:06]} Rxd4 {[%emt 0:02:23]} 29. Rfe1 {[%emt 0:01:08]} Nd5 {[%emt 0:02:57]} 30. Rac1 {[%emt 0:02:17]} c6 {[%emt 0:02:56]} 31. Nf5 {[%emt 0:05:26]} Rf4 {[%emt 0:00:42]} 32. Re5 {[%emt 0:00:56]} Kd7 {[%emt 0:05:16]} 33. Rb1 {[%emt 0:04:24]} b6 {[%emt 0:04:20]} 34. Ng3 {[%emt 0:03:24]} f6 {[%emt 0:01:00]} 35. Re2 {[%emt 0:00:30]} Rd4 {[%emt 0:02:52]} 36. Rbe1 {[%emt 0:02:36]} a5 {[%emt 0:04:04]} 37. h6 {[%emt 0:01:58]} Rf4 {[%emt 0:01:05]} 38. Re8 {[%emt 0:01:01]} Rxh6 {[%emt 0:00:48]} 39. Rb8 {[%emt 0:01:15]} f5 {[%emt 0:03:53]} 40. Re5 {[%emt 0:01:08]} Rc4 {[%emt 0:02:19]} 41. Rb7+ {[%emt 0:08:38]} Kd6 {[%emt 0:02:25]} 42. Nxf5+ {[%emt 0:03:17]} Kxe5 {[%emt 0:00:06]} 43. Nxh6 {[%emt 0:00:03]} b5 {[%emt 0:01:24]} 44. Kh2 {[%emt 0:00:13]} b4 {[%emt 0:03:35]} 45. axb4 {[%emt 0:00:19]} axb4 {[%emt 0:00:03]} 46. Kg3 {[%emt 0:00:08]} Nf6 {[%emt 0:00:52]} 47. f4+ {[%emt 0:01:00]} gxf3 {[%emt 0:01:00]} 48. gxf3 {[%emt 0:00:12]} Kd4 {[%emt 0:05:41]} 49. Ng4 {[%emt 0:01:16]} Nxg4 {[%emt 0:12:33]} 50. fxg4 {[%emt 0:00:11]} Kc3 {[%emt 0:00:02]} 51. g5 {[%emt 0:00:28]} Rd4 {[%emt 0:00:11]} 52. Rc7 {[%emt 0:05:01]} Rd6 {[%emt 0:00:07]} 53. Kf4 {[%emt 0:00:04]} b3 {[%emt 0:00:07]} 54. Ke5 {[%emt 0:00:11]} Rd5+ {[%emt 0:01:30]} 55. Kf6 {[%emt 0:00:09]} b2 {[%emt 0:00:37]} 56. Rxc6+ {[%emt 0:00:53]} Kb4 {[%emt 0:00:03]} 57. g6 {[%emt 0:00:22]} b1=Q {[%emt 0:00:13]} 58. Rb6+ {[%emt 0:00:02]} Rb5 {[%emt 0:00:05]} 59. Rxb5+ {[%emt 0:00:04]} Kxb5 {[%emt 0:00:03]} 0-1

[Event "Fagernes Chess GM-Swiss 2024"]
[Site "Fagernes"]
[Date "2024.03.26"]
[Round "3.20"]
[White "Moreby, James"]
[Black "Petkov, Momchil"]
[Result "1/2-1/2"]
[ECO "A13"]
[WhiteElo "2260"]
[BlackElo "2500"]
[Annotator "TA"]
[PlyCount "52"]
[EventDate "2024.03.25"]
[EventType "swiss"]
[EventCountry "NOR"]
[SourceTitle "playchess.com"]
[Source "ChessBase"]
[SourceQuality "1"]
[TimeControl "40/6000+30:2400+30"]

{[%evp 9,52,10,4,7,3,-28,27,19,0,-3,8,8,93,85,94,96,94,93,77,86,88,92,80,80,85,78,87,92,107,113,113,99,98,78,64,72,85,82,98,94,92,34,34,30,25]} 1. c4 {[%emt 0:03:47]} e6 {[%emt 0:00:15]} 2. g3 {[%emt 0:00:18]} d5 {[%emt 0:00:12]} 3. Bg2 {[%emt 0:00:06]} d4 {[%emt 0:00:20]} 4. Nf3 {[%emt 0:00:34]} Nc6 {[%emt 0:00:17]} 5. e3 {[%emt 0:03:47]} Bc5 {[%emt 0:02:58]} 6. O-O {[%emt 0:13:26][%cal Ob2b4]} Nge7 {[%emt 0:01:19]} 7. b3 {[%emt 0:18:18]} O-O {[%emt 0:07:21]} (7... e5 $142) 8. Bb2 {[%emt 0:02:25]} e5 {[%emt 0:10:12]} 9. exd4 {[%emt 0:01:06]} exd4 {[%emt 0:00:41]} 10. d3 {[%emt 0:04:04]} Qd6 {[%emt 0:05:44] [#]} (10... a5 $11 {keeps the balance.}) 11. a3 $1 $16 {[%emt 0:07:17][%cal Ba2a3,Ba3b4][%mdl 32] Black must now prevent b4.} a5 {[%emt 0:00:15] [#]} 12. b4 $1 {[%emt 0:02:21]} axb4 {[%emt 0:14:32]} 13. axb4 {[%emt 0:00:11]} Rxa1 {[%emt 0:00:05]} 14. bxc5 $1 {[%emt 0:00:16]} Rxb1 {[%emt 0:00:07]} 15. cxd6 {[%emt 0:00:26]} Rxd1 {[%emt 0:00:05]} 16. Rxd1 {[%emt 0:00:23]} cxd6 {[%emt 0:00:04]} 17. Nxd4 {[%emt 0:00:59]} Rd8 {[%emt 0:12:02]} 18. Re1 {[%emt 0:15:42]} Kf8 {[%emt 0:17:47]} 19. Nb5 {[%emt 0:09:21] White has more active pieces.} Ne5 {[%emt 0:02:55]} 20. Ba3 {[%emt 0:05:36] A strong pair of Bishops.} Nxd3 {[%emt 0:01:24]} 21. Rd1 {[%emt 0:01:14]} Ne5 {[%emt 0:00:27]} 22. Rxd6 {[%emt 0:00:52]} Rxd6 {[%emt 0:01:06]} 23. Nxd6 {[%emt 0:00:27]} ({Much weaker is} 23. Bxd6 Nxc4 24. Bb4 Bd7 $11) 23... Be6 {[%emt 0:00:07]} 24. c5 {[%emt 0:02:38]} ({Don't do} 24. Bxb7 Nxc4 25. Nxc4 Bxc4 $14) 24... Bd5 {[%emt 0:02:43]} 25. Nxb7 {[%emt 0:04:29]} (25. f4 $16 Bxg2 26. Kxg2) 25... Nf3+ $14 {[%emt 0:00:32]} 26. Bxf3 {[%emt 0:00:06]} Bxf3 {[%emt 0:00:04] Weighted Error Value: White=0.07 (flawless) /Black=0.18 (very precise) .  Mistake:       	White=1     	Black=2      Inaccurate:     	White=1     	---        OK:         	White=4     	Black=10     Best:        	White=4     	Black=3      Strong:       	White=2     	---        Brilliant:      	White=1     	---} 1/2-1/2

[Event "Fagernes Chess GM-Swiss 2024"]
[Site "Fagernes"]
[Date "2024.03.26"]
[Round "3.21"]
[White "Lindh, Fredrik"]
[Black "Mitusov, Semen"]
[Result "0-1"]
[ECO "C60"]
[WhiteElo "2256"]
[BlackElo "2487"]
[Annotator "TA"]
[PlyCount "82"]
[EventDate "2024.03.25"]
[EventType "swiss"]
[EventCountry "NOR"]
[SourceTitle "playchess.com"]
[Source "ChessBase"]
[SourceQuality "1"]
[TimeControl "40/6000+30:2400+30"]

{[%evp 9,82,33,30,31,31,31,36,31,54,17,30,15,18,12,16,0,47,41,22,25,47,48,39,50,40,42,53,16,20,17,29,21,30,21,39,5,6,32,34,41,42,43,46,38,51,9,95,88,105,-46,-40,-58,-58,-56,-58,-53,0,0,0,0,0,0,47,-85,-92,-101,-44,-212,-196,-1078,-1073,-948,-948,-29979,-29980]} 1. e4 {[%emt 0:00:02]} e5 {[%emt 0:03:02]} 2. Nf3 {[%emt 0:01:34]} Nc6 {[%emt 0:00:08]} 3. Bb5 {[%emt 0:00:06]} Nge7 {[%emt 0:00:10]} 4. Nc3 {[%emt 0:00:34]} Ng6 {[%emt 0:00:42]} 5. d4 {[%emt 0:02:28]} exd4 {[%emt 0:01:52]} 6. Nxd4 {[%emt 0:00:05]} Nxd4 {[%emt 0:05:20]} 7. Qxd4 {[%emt 0:01:02][%cal Oh2h4]} c6 {[%emt 0:00:05]} 8. Be2 {[%emt 0:00:06] White is slightly better.} Qb6 {[%emt 0:00:14]} 9. Qd3 {[%emt 0:00:04]} Be7 {[%emt 0:02:37]} 10. O-O {[%emt 0:12:20]} O-O {[%emt 0:00:23]} 11. a4 {[%emt 0:12:38]} d6 {[%emt 0:00:40]} 12. Be3 {[%emt 0:03:29]} Qc7 {[%emt 0:00:06]} (12... Qa5 $11) 13. f4 $14 {[%emt 0:00:28]} Kh8 {[%emt 0:00:57]} 14. Bh5 {[%emt 0:08:28]} Bd7 {[%emt 0:13:28]} 15. Bd4 {[%emt 0:10:37]} Qa5 {[%emt 0:07:29]} 16. Bxg6 {[%emt 0:02:37]} fxg6 {[%emt 0:04:59]} 17. b4 {[%emt 0:04:40]} Qc7 {[%emt 0:02:52][%cal Od6d5]} (17... Qxb4 18. Rab1 Qa5 19. Rxb7 $16) 18. Ne2 {[%emt 0:07:43]} Bf6 {[%emt 0:11:29] Black is weak on the dark squares} 19. a5 {[%emt 0:16:25]} Rae8 {[%emt 0:02:39]} 20. Bxf6 {[%emt 0:02:39]} Rxf6 {[%emt 0:00:43]} 21. Nc3 {[%emt 0:01:26]} Be6 {[%emt 0:03:02]} 22. Rad1 {[%emt 0:04:39]} Qf7 {[%emt 0:02:45]} 23. Qe3 {[%emt 0:00:06]} (23. Qxd6 $2 Bg4 24. Qd4 Bxd1 $19 (24... Rxf4 25. Rxf4 Qxf4 26. Rf1 $16)) 23... Bg4 {[%emt 0:06:55]} 24. Rd2 {[%emt 0:01:21][%cal Oh2h3]} a6 {[%emt 0:10:32]} 25. h3 {[%emt 0:01:48]} Bc8 {[%emt 0:00:33][%cal Og6g5]} 26. Rff2 {[%emt 0:03:13]} h6 {[%emt 0:01:04]} 27. e5 {[%emt 0:08:17]} Rfe6 {[%emt 0:04:26]} (27... dxe5 $11 {keeps the balance.} 28. Ne4 (28. fxe5 Kh7 $11) 28... exf4) 28. Ne4 $1 $16 {[%emt 0:03:09]} (28. Rxd6 $2 {too greedy.} Rxd6 29. Kh2 Rdd8 $19) 28... Qe7 {[%emt 0:02:00]} 29. Qd4 {[%emt 0:01:50]} (29. Rxd6 $2 {is the wrong capture.} Rxd6 30. Nxd6 Qxd6 31. exd6 Rxe3 $19) (29. g4 $16) 29... dxe5 $15 {[%emt 0:00:57]} 30. fxe5 {[%emt 0:00:04]} Rxe5 {[%emt 0:01:17]} 31. Nd6 {[%emt 0:00:36][%cal Of2f7]} Rd5 $1 {[%emt 0:00:57]} 32. Qf4 {[%emt 0:00:39] [#] Rxd5 would now be deadly.} Qe1+ {[%emt 0:08:31]} (32... g5 $1 $15 33. Qg3 (33. Qf7 Qxf7 34. Nxf7+ Kg8 $17) 33... Qe1+ 34. Kh2 Rxd2 35. Rxd2 Qxd2 36. Nxe8 Qxb4) 33. Kh2 $11 {[%emt 0:00:05]} g5 $1 {[%emt 0:00:08]} 34. Qf7 {[%emt 0:01:19]} Qe5+ {[%emt 0:04:47]} 35. g3 {[%emt 0:00:23]} Rg8 {[%emt 0:00:22]} (35... Rxd2 $11 36. Rxd2 Rg8) 36. Rxd5 {[%emt 0:00:28]} (36. Qxd5 $1 $14 {stays ahead.} Qxd5 37. Rxd5 cxd5 38. h4 gxh4 39. gxh4) 36... cxd5 $17 {[%emt 0:00:15]} 37. Qc7 {[%emt 0:00:59] White wants to mate with Nf7+.} Qe3 {[%emt 0:00:28]} (37... Kh7 $17 {Hoping for ...h5.} 38. Qb6 Bd7) 38. Qc5 $2 {[%emt 0:00:30] Now White is beyond hope.} ({White should play} 38. Qf7 $1 $15) 38... d4 $19 {[%emt 0:00:27]} 39. Kg2 {[%emt 0:00:28] [#]} (39. Rg2 Bd7 40. Nf5 Bxf5 41. Qxf5) 39... Bxh3+ $1 {[%emt 0:01:03][%mdl 512]} 40. Kxh3 {[%emt 0:00:14]} Qxf2 {[%emt 0:00:13]} 41. Qd5 {[%emt 0:01:54]} Rf8 {[%emt 0:01:03] Weighted Error Value: White=0.56/Black=0.15 (very precise) .  Loses game:     	White=1     	---        Mistake:       	White=3     	Black=5      Inaccurate:     	White=4     	---        OK:         	White=9     	Black=8      Best:        	White=2     	Black=3      Strong:       	White=1     	Black=2      Brilliant:      	---       	Black=1} 0-1

[Event "Fagernes Chess GM-Swiss 2024"]
[Site "Fagernes"]
[Date "2024.03.26"]
[Round "3.22"]
[White "Hillarp Persson, Tiger"]
[Black "Brattgjerd, Isak Vinh"]
[Result "1-0"]
[ECO "A07"]
[WhiteElo "2473"]
[BlackElo "2228"]
[Annotator "TA"]
[PlyCount "113"]
[EventDate "2024.03.25"]
[EventType "swiss"]
[EventCountry "NOR"]
[SourceTitle "playchess.com"]
[Source "ChessBase"]
[SourceQuality "1"]
[TimeControl "40/6000+30:2400+30"]

{[%evp 11,113,8,6,7,10,7,12,6,11,6,18,18,39,29,45,45,62,60,52,33,46,32,48,45,70,34,34,19,34,20,32,24,27,29,17,19,25,-20,-28,-21,0,-33,19,17,14,-6,-2,0,-6,-2,123,145,128,137,135,111,106,105,170,169,167,159,135,163,288,287,276,298,288,297,308,304,305,296,303,277,282,197,245,0,295,291,302,282,521,515,534,553,433,433,537,744,5399,1885,5309,5144,4847,424,5063,4779,29982,29983,29983,29983]} 1. Nf3 {[%emt 0:04:52]} d5 {[%emt 0:00:12]} 2. g3 {[%emt 0:00:21]} Bg4 {[%emt 0:00:09]} 3. Bg2 {[%emt 0:00:06]} Nd7 {[%emt 0:00:06]} 4. c4 {[%emt 0:00:09]} e6 {[%emt 0:04:34]} 5. cxd5 {[%emt 0:00:11]} exd5 {[%emt 0:00:09]} 6. O-O {[%emt 0:00:07]} Ngf6 {[%emt 0:00:16]} 7. h3 {[%emt 0:00:06]} Bxf3 {[%emt 0:00:30]} 8. exf3 {[%emt 0:00:51]} Be7 {[%emt 0:00:26]} 9. f4 {[%emt 0:00:32] The position is equal.} O-O {[%emt 0:00:09]} 10. d3 {[%emt 0:00:00]} Nb6 {[%emt 0:08:07]} 11. Nd2 {[%emt 0:00:21]} Nfd7 {[%emt 0:02:16]} 12. Nf3 {[%emt 0:01:32]} Bd6 {[%emt 0:01:54]} 13. h4 {[%emt 0:04:09]} Qf6 {[%emt 0:11:53]} 14. Bh3 {[%emt 0:14:17]} Rfe8 {[%emt 0:07:49]} 15. Kg2 {[%emt 0:05:16]} Bf8 {[%emt 0:15:05]} 16. Qc2 {[%emt 0:05:10][%cal Od3d4]} c5 {[%emt 0:01:21]} 17. Bd2 {[%emt 0:02:46]} Qc6 {[%emt 0:06:54]} 18. d4 {[%emt 0:08:14] White is more active.} cxd4 {[%emt 0:16:36]} 19. Qxc6 {[%emt 0:06:02]} bxc6 {[%emt 0:00:02]} 20. Nxd4 {[%emt 0:00:09]} c5 {[%emt 0:01:43]} 21. Nb5 {[%emt 0:00:47]} (21. Nc6 {simplifies} Rec8 22. Ne5 Nxe5 23. fxe5 Re8 24. f4) 21... Re2 {[%emt 0:00:10]} (21... Re7 {simplifies} 22. Rfe1 Nf6 23. Rxe7 Bxe7 24. Re1 Kf8) 22. Rad1 {[%emt 0:01:39]} Nf6 {[%emt 0:01:26]} 23. Kf3 {[%emt 0:18:44]} (23. Nc7 {simplifies} Rd8 24. Rfe1 Rxe1 25. Bxe1 a5 26. b3) 23... Re7 {[%emt 0:08:04]} 24. b4 {[%emt 0:05:18]} c4 {[%emt 0:02:21]} 25. Bc3 {[%emt 0:00:40][%cal Bd2c3,Bc3e5,Be5d4][%mdl 32]} Ne4 {[%emt 0:00:57] White must now prevent ...a6.} 26. Be5 {[%emt 0:00:44]} f6 {[%emt 0:02:41]} (26... g6 $15) 27. Bd4 $11 {[%emt 0:11:10]} Na4 {[%emt 0:05:49] Inhibits Bc5.} 28. Nc7 {[%emt 0:00:33]} Rxc7 {[%emt 0:01:18]} 29. Be6+ {[%emt 0:00:05]} Kh8 {[%emt 0:00:03]} 30. Bxd5 {[%emt 0:00:08][%cal Be6d5,Bd5a8,Ba8e4,Be4f5][%mdl 32]} Nec3 {[%emt 0:05:50]} (30... Nd2+ $11 {remains equal.} 31. Rxd2 Rd8) 31. Bxa8 $16 {[%emt 0:01:16] A strong pair of Bishops.} Nxd1 {[%emt 0:00:07]} 32. Rxd1 {[%emt 0:00:05] Threatens to win with Be4.} c3 {[%emt 0:01:34][%cal Oa4b2]} 33. Be4 {[%emt 0:02:28]} Nb2 {[%emt 0:00:49] [#]} 34. Re1 {[%emt 0:02:28] Strongly threatening Bc2.} Rc4 {[%emt 0:02:29]} (34... Bxb4 $16 {keeps fighting.} 35. Bc2 Rc8) 35. Bxa7 $18 {[%emt 0:02:11]} Bxb4 {[%emt 0:01:05]} 36. Bf5 {[%emt 0:06:08] White threatens Re8+ and mate.} g6 {[%emt 0:01:04]} 37. Bc2 {[%emt 0:00:42]} Kg7 {[%emt 0:00:41]} (37... Bc5 $142 38. Re8+ Kg7) 38. Re4 {[%emt 0:01:17]} Rc7 {[%emt 0:01:53]} 39. Bb6 {[%emt 0:01:26]} Rc4 {[%emt 0:00:01]} 40. a4 {[%emt 0:04:03]} f5 {[%emt 0:00:47]} 41. Rxc4 {[%emt 0:40:20]} Nxc4 {[%emt 0:40:03][%mdl 4096] Endgame. KBB-KBN} 42. Bd4+ {[%emt 0:00:12]} Kf8 {[%emt 0:00:10]} 43. Ke2 {[%emt 0:00:34]} Ke7 {[%emt 0:00:24]} 44. Bb3 {[%emt 0:03:32]} Nd2 {[%emt 0:00:00]} (44... Na5 $142 45. Bc2 Nc4) 45. Bc2 {[%emt 0:00:00] Kd3 would now be deadly.} Nc4 $1 {[%emt 0:00:00] [#]} 46. h5 $1 {[%emt 0:00:00][%mdl 512]} Kd6 {[%emt 0:00:00]} 47. Bg7 {[%emt 0:00:00]} Ba5 $2 {[%emt 0:00:00]} (47... Kc5 {might work better.} 48. Bf8+ Nd6 49. hxg6 (49. Kd3 Kc6 $18) 49... hxg6) 48. hxg6 {[%emt 0:00:00]} hxg6 {[%emt 0:00:00]} 49. Kd3 {[%emt 0:00:00][%csl LRc3,LRc4]} Nb2+ {[%emt 0:00:00]} 50. Kd4 {[%emt 0:00:00]} Bb6+ {[%emt 0:00:00]} (50... Kc6 $142 51. Bf8 Kc7) 51. Kxc3 {[%emt 0:00:00]} Nxa4+ {[%emt 0:00:00]} 52. Bxa4 {[%emt 0:00:00]} Bxf2 {[%emt 0:00:00]} 53. Bf6 {[%emt 0:00:00]} Ke6 {[%emt 0:00:00]} 54. Bh4 {[%emt 0:00:00]} (54. Bg5 $142 Kf7 55. Bh4) 54... g5 {[%emt 0:00:00]} (54... Kf7 $142 55. Bb3+ Kg7) 55. Bb3+ {[%emt 0:00:00]} Kd7 {[%emt 0:00:00]} 56. fxg5 {[%emt 0:00:00]} Be1+ {[%emt 0:00:00]} 57. Kd3 {[%emt 0:00:00] Weighted Error Value: White=0.32/Black=0.38.  Mistake:       	---       	Black=7      Inaccurate:     	White=5     	Black=2      OK:         	White=18    	Black=15     Best:        	White=6     	Black=3      Strong:       	---       	Black=1} 1-0

[Event "Fagernes Chess GM-Swiss 2024"]
[Site "Fagernes"]
[Date "2024.03.26"]
[Round "3.23"]
[White "Kreken, Eivind Grunt"]
[Black "Sorensen, Hampus"]
[Result "1/2-1/2"]
[ECO "A07"]
[WhiteElo "2215"]
[BlackElo "2428"]
[Annotator "RC"]
[PlyCount "113"]
[EventDate "2024.03.25"]
[EventType "swiss"]
[EventCountry "NOR"]
[SourceTitle "playchess.com"]
[Source "ChessBase"]
[SourceQuality "1"]
[TimeControl "40/6000+30:2400+30"]

1. Nf3 {[%emt 0:00:05]} Nf6 {[%emt 0:00:23]} 2. g3 {[%emt 0:00:44]} d5 {[%emt 0:00:14]} 3. Bg2 {[%emt 0:00:19]} e6 {[%emt 0:01:57]} 4. O-O {[%emt 0:00:32]} Be7 {[%emt 0:01:02]} 5. d3 {[%emt 0:01:07]} a5 {[%emt 0:07:13]} 6. a4 {[%emt 0:09:01]} O-O {[%emt 0:01:39]} 7. Nc3 {[%emt 0:12:15]} Nbd7 {[%emt 0:03:04]} 8. e4 {[%emt 0:13:05]} dxe4 {[%emt 0:01:36]} 9. Nxe4 {[%emt 0:00:52]} Nxe4 {[%emt 0:04:02]} 10. dxe4 {[%emt 0:00:43]} e5 {[%emt 0:00:13]} 11. Be3 {[%emt 0:13:35]} c6 {[%emt 0:08:55]} 12. c3 {[%emt 0:07:19]} Qc7 {[%emt 0:14:01]} 13. Qc2 {[%emt 0:02:47]} Bc5 {[%emt 0:01:12]} 14. Bxc5 {[%emt 0:02:36]} Nxc5 {[%emt 0:00:06]} 15. b4 {[%emt 0:01:00]} Na6 {[%emt 0:06:02]} 16. Rfb1 {[%emt 0:06:20]} Rd8 {[%emt 0:17:14]} 17. Qb2 {[%emt 0:06:10]} Be6 {[%emt 0:11:59]} 18. Bf1 {[%emt 0:02:30]} Bg4 {[%emt 0:00:48]} 19. Be2 {[%emt 0:15:18]} Qe7 {[%emt 0:01:45]} 20. bxa5 {[%emt 0:02:24]} Qf6 {[%emt 0:04:50]} 21. Kg2 {[%emt 0:01:20]} Nc5 {[%emt 0:01:38]} 22. Ne1 {[%emt 0:02:55]} Bxe2 {[%emt 0:11:24]} 23. Qxe2 {[%emt 0:00:18]} Rxa5 {[%emt 0:00:06]} 24. Qc4 {[%emt 0:02:08]} Rda8 {[%emt 0:04:35]} 25. Nf3 {[%emt 0:01:20]} Qe7 {[%emt 0:00:41]} 26. Rb4 {[%emt 0:05:43]} b5 {[%emt 0:00:20]} 27. Qe2 {[%emt 0:00:23]} Rxa4 {[%emt 0:00:24]} 28. Rbxa4 {[%emt 0:00:22]} Rxa4 {[%emt 0:00:59]} 29. Rxa4 {[%emt 0:00:16]} bxa4 {[%emt 0:03:38]} 30. Qc4 {[%emt 0:00:08]} h6 {[%emt 0:02:31]} 31. Qb4 {[%emt 0:01:11]} Qd6 {[%emt 0:00:26]} 32. h4 {[%emt 0:00:40]} Kh7 {[%emt 0:00:47]} 33. h5 {[%emt 0:00:18]} Qe7 {[%emt 0:00:24]} 34. Qa3 {[%emt 0:00:26]} Qa7 {[%emt 0:00:23]} 35. Nxe5 {[%emt 0:00:24]} Nxe4 {[%emt 0:00:08]} 36. Qa2 {[%emt 0:00:56]} a3 {[%emt 0:01:04]} 37. Nc4 {[%emt 0:00:54]} Qxf2+ {[%emt 0:00:37]} 38. Qxf2 {[%emt 0:00:05]} Nxf2 {[%emt 0:00:02]} 39. Nxa3 {[%emt 0:00:09]} Ne4 {[%emt 0:00:46]} 40. Nc4 {[%emt 0:01:18]} Nxc3 {[%emt 0:00:49]} 41. Ne5 {[%emt 0:03:24]} c5 {[%emt 0:11:35]} 42. Nxf7 {[%emt 0:00:40]} g6 {[%emt 0:13:20]} 43. hxg6+ {[%emt 0:17:48]} Kxg6 {[%emt 0:00:12]} 44. Nd6 {[%emt 0:01:18]} Nd5 {[%emt 0:06:27]} 45. g4 {[%emt 0:04:49]} Nb6 {[%emt 0:04:54]} 46. Kf3 {[%emt 0:01:16]} Nd7 {[%emt 0:04:51]} 47. Ke4 {[%emt 0:01:21]} Kg5 {[%emt 0:00:06]} 48. Nf7+ {[%emt 0:00:21]} Kg6 {[%emt 0:00:09]} 49. Nd6 {[%emt 0:00:11]} Nf6+ {[%emt 0:00:21]} 50. Kf4 {[%emt 0:00:14]} Nd5+ {[%emt 0:01:00]} 51. Ke4 {[%emt 0:00:20]} Ne7 {[%emt 0:00:15]} 52. Ke5 {[%emt 0:01:09]} Kg5 {[%emt 0:01:45]} 53. Nf7+ {[%emt 0:00:12]} Kxg4 {[%emt 0:00:24]} 54. Nxh6+ {[%emt 0:00:15]} Kf3 {[%emt 0:00:09]} 55. Nf5 {[%emt 0:00:48]} c4 {[%emt 0:00:13]} 56. Kd4 {[%emt 0:00:08]} Nxf5+ {[%emt 0:00:05]} 57. Kxc4 {[%emt 0:00:04]} 1/2-1/2